[Event "Titled Tuesday Blitz February 14 Early 2023"]
[White "Skuhala, Barbara"]
[Black "Taboas Rodriguez, Daniel"]
[WhiteFideId "14605465"]
[BlackFideId "2208466"]
[WhiteElo "2153"]
[BlackElo "2371"]
[Result "1-0"]
[Round "02"]
[TimeControl "180+2"]
[Date "2023.02.15"]
[WhiteClock "0:00:15"]
[BlackClock "0:00:01"]

1. e4 {[%clk 0:02:59]}  e5 {[%clk 0:03:00]} 2. Nf3 {[%clk 0:02:59]}  Nc6 {[%clk 0:02:59]} 3. d4 {[%clk 0:02:59]}  exd4 {[%clk 0:02:59]} 4. Nxd4 {[%clk 0:02:58]}  Nf6 {[%clk 0:03:00]} 5. Nxc6 {[%clk 0:02:58]}  bxc6 {[%clk 0:03:00]} 6. Bd3 {[%clk 0:02:57]}  d5 {[%clk 0:03:00]} 7. exd5 {[%clk 0:02:57]}  cxd5 {[%clk 0:03:00]} 8. O-O {[%clk 0:02:56]}  Be7 {[%clk 0:03:00]} 9. c4 {[%clk 0:02:55]}  O-O {[%clk 0:02:58]} 10. Nc3 {[%clk 0:02:54]}  Be6 {[%clk 0:02:53]} 11. cxd5 {[%clk 0:02:51]}  Nxd5 {[%clk 0:02:54]} 12. Nxd5 {[%clk 0:02:50]}  Qxd5 {[%clk 0:02:55]} 13. Bc2 {[%clk 0:02:47]}  Bf6 {[%clk 0:02:50]} 14. Qxd5 {[%clk 0:02:46]}  Bxd5 {[%clk 0:02:50]} 15. Bb3 {[%clk 0:02:41]}  Rfd8 {[%clk 0:02:46]} 16. Bxd5 {[%clk 0:02:40]}  Rxd5 {[%clk 0:02:47]} 17. Rb1 {[%clk 0:02:40]}  Re8 {[%clk 0:02:41]} 18. Be3 {[%clk 0:02:38]}  Bd4 {[%clk 0:02:36]} 19. Bxd4 {[%clk 0:02:38]}  Rxd4 {[%clk 0:02:36]} 20. Rbc1 {[%clk 0:02:36]}  Re7 {[%clk 0:02:33]} 21. Rc2 {[%clk 0:02:36]}  Kf8 {[%clk 0:02:29]} 22. g3 {[%clk 0:02:35]}  Ke8 {[%clk 0:02:29]} 23. Rfc1 {[%clk 0:02:35]}  Kd8 {[%clk 0:02:29]} 24. Kg2 {[%clk 0:02:36]}  h6 {[%clk 0:02:24]} 25. a3 {[%clk 0:02:35]}  a5 {[%clk 0:02:23]} 26. Rc5 {[%clk 0:02:29]}  a4 {[%clk 0:02:22]} 27. R1c2 {[%clk 0:02:29]}  g6 {[%clk 0:02:15]} 28. R5c3 {[%clk 0:02:27]}  h5 {[%clk 0:02:14]} 29. b3 {[%clk 0:02:27]}  Kc8 {[%clk 0:02:09]} 30. b4 {[%clk 0:02:25]}  Kb7 {[%clk 0:02:08]} 31. Rc5 {[%clk 0:02:21]}  Rd3 {[%clk 0:02:06]} 32. Ra2 {[%clk 0:02:19]}  Re6 {[%clk 0:02:02]} 33. Ra5 {[%clk 0:02:18]}  Ra6 {[%clk 0:02:02]} 34. Rb5+ {[%clk 0:02:18]}  Kc6 {[%clk 0:01:57]} 35. Rc5+ {[%clk 0:02:18]}  Kd6 {[%clk 0:01:58]} 36. Rac2 {[%clk 0:02:16]}  c6 {[%clk 0:01:58]} 37. Ra2 {[%clk 0:02:12]}  Rd5 {[%clk 0:01:55]} 38. Rc3 {[%clk 0:02:11]}  c5 {[%clk 0:01:50]} 39. bxc5+ {[%clk 0:02:10]}  Rxc5 {[%clk 0:01:51]} 40. Rd2+ {[%clk 0:02:10]}  Kc6 {[%clk 0:01:51]} 41. Rf3 {[%clk 0:02:09]}  f5 {[%clk 0:01:46]} 42. Rd4 {[%clk 0:02:07]}  Rd5 {[%clk 0:01:42]} 43. Rb4 {[%clk 0:02:03]}  Rb5 {[%clk 0:01:38]} 44. Rc3+ {[%clk 0:02:03]}  Kb6 {[%clk 0:01:38]} 45. Rd4 {[%clk 0:02:03]}  Rba5 {[%clk 0:01:03]} 46. Kf3 {[%clk 0:02:00]}  Kb7 {[%clk 0:00:58]} 47. Kf4 {[%clk 0:01:58]}  Rb6 {[%clk 0:00:56]} 48. Kg5 {[%clk 0:01:55]}  Raa6 {[%clk 0:00:56]} 49. h4 {[%clk 0:01:51]}  Rb2 {[%clk 0:00:55]} 50. f4 {[%clk 0:01:50]}  Rb5 {[%clk 0:00:47]} 51. Rd7+ {[%clk 0:01:48]}  Kb8 {[%clk 0:00:38]} 52. Re3 {[%clk 0:01:47]}  Rb7 {[%clk 0:00:37]} 53. Rd4 {[%clk 0:01:37]}  Ka7 {[%clk 0:00:29]} 54. Rc3 {[%clk 0:01:36]}  Rb3 {[%clk 0:00:28]} 55. Rc7+ {[%clk 0:01:33]}  Kb6 {[%clk 0:00:25]} 56. Rcc4 {[%clk 0:01:28]}  Rxa3 {[%clk 0:00:24]} 57. Kxg6 {[%clk 0:01:27]}  Rxg3+ {[%clk 0:00:22]} 58. Kxf5 {[%clk 0:01:27]}  a3 {[%clk 0:00:23]} 59. Ra4 {[%clk 0:01:24]}  Rxa4 {[%clk 0:00:20]} 60. Rxa4 {[%clk 0:01:24]}  Kb5 {[%clk 0:00:21]} 61. Ra8 {[%clk 0:01:24]}  Kb4 {[%clk 0:00:22]} 62. Ke4 {[%clk 0:01:10]}  Rg4 {[%clk 0:00:20]} 63. Ke5 {[%clk 0:01:10]}  Rxh4 {[%clk 0:00:21]} 64. f5 {[%clk 0:01:08]}  Rh2 {[%clk 0:00:21]} 65. f6 {[%clk 0:01:06]}  Rf2 {[%clk 0:00:21]} 66. Ke6 {[%clk 0:00:59]}  a2 {[%clk 0:00:19]} 67. Rb8+ {[%clk 0:00:53]}  Kc3 {[%clk 0:00:19]} 68. Rc8+ {[%clk 0:00:43]}  Kb2 {[%clk 0:00:19]} 69. Rb8+ {[%clk 0:00:42]}  Kc1 {[%clk 0:00:18]} 70. Rc8+ {[%clk 0:00:39]}  Kb1 {[%clk 0:00:18]} 71. Rb8+ {[%clk 0:00:36]}  Rb2 {[%clk 0:00:18]} 72. Rxb2+ {[%clk 0:00:34]}  Kxb2 {[%clk 0:00:18]} 73. f7 {[%clk 0:00:34]}  a1=Q {[%clk 0:00:19]} 74. f8=Q {[%clk 0:00:34]}  Qe1+ {[%clk 0:00:15]} 75. Kd5 {[%clk 0:00:30]}  Qd2+ {[%clk 0:00:14]} 76. Ke5 {[%clk 0:00:29]}  Qe3+ {[%clk 0:00:14]} 77. Kd5 {[%clk 0:00:28]}  Qe2 {[%clk 0:00:09]} 78. Qf6+ {[%clk 0:00:27]}  Kc1 {[%clk 0:00:08]} 79. Qa1+ {[%clk 0:00:24]}  Kd2 {[%clk 0:00:09]} 80. Qb2+ {[%clk 0:00:23]}  Ke3 {[%clk 0:00:09]} 81. Qe5+ {[%clk 0:00:20]}  Kf2 {[%clk 0:00:08]} 82. Qh2+ {[%clk 0:00:20]}  Ke1 {[%clk 0:00:07]} 83. Qg1+ {[%clk 0:00:20]}  Kd2 {[%clk 0:00:07]} 84. Qg5+ {[%clk 0:00:18]}  Kd3 {[%clk 0:00:01]} 85. Qf5+ {[%clk 0:00:17]}  Kc3 {[%clk 0:00:01]} 86. Qf6+ {[%clk 0:00:16]}  Kd2 {[%clk 0:00:01]} 87. Qg5+ {[%clk 0:00:15]} 1-0


[Site "https://www.chess.com"]

[Event "Titled Tuesday Blitz February 14 Early 2023"]
[White "Mazibuko, Khanya"]
[Black "Jimenez Almeida, Luis David"]
[WhiteFideId "14321041"]
[BlackFideId "22242244"]
[WhiteElo "1913"]
[BlackElo "2242"]
[Result "0-1"]
[Round "02"]
[TimeControl "180+2"]
[Date "2023.02.15"]
[WhiteClock "0:00:20"]
[BlackClock "0:00:05"]

1. e4 {[%clk 0:02:59]}  c6 {[%clk 0:02:59]} 2. Nc3 {[%clk 0:02:57]}  g6 {[%clk 0:02:59]} 3. d4 {[%clk 0:02:55]}  Bg7 {[%clk 0:02:58]} 4. Nf3 {[%clk 0:02:55]}  d6 {[%clk 0:02:58]} 5. Bf4 {[%clk 0:02:53]}  Nf6 {[%clk 0:02:58]} 6. h3 {[%clk 0:02:48]}  O-O {[%clk 0:02:56]} 7. Qd2 {[%clk 0:02:48]}  b5 {[%clk 0:02:55]} 8. Bd3 {[%clk 0:02:48]}  a5 {[%clk 0:02:45]} 9. a3 {[%clk 0:02:44]}  Na6 {[%clk 0:02:42]} 10. O-O {[%clk 0:02:43]}  b4 {[%clk 0:02:38]} 11. axb4 {[%clk 0:02:36]}  axb4 {[%clk 0:02:39]} 12. Ne2 {[%clk 0:02:34]}  c5 {[%clk 0:02:36]} 13. dxc5 {[%clk 0:02:29]}  dxc5 {[%clk 0:02:35]} 14. Ng3 {[%clk 0:02:21]}  Bb7 {[%clk 0:02:25]} 15. Qe2 {[%clk 0:02:17]}  Qb6 {[%clk 0:02:10]} 16. Ne5 {[%clk 0:02:12]}  Rfd8 {[%clk 0:01:39]} 17. Nc4 {[%clk 0:01:50]}  Qe6 {[%clk 0:01:38]} 18. Rfe1 {[%clk 0:01:45]}  Nb8 {[%clk 0:01:30]} 19. Rxa8 {[%clk 0:01:43]}  Bxa8 {[%clk 0:01:31]} 20. Bc7 {[%clk 0:01:36]}  Rc8 {[%clk 0:01:28]} 21. Be5 {[%clk 0:01:30]}  Nc6 {[%clk 0:01:24]} 22. Bxf6 {[%clk 0:01:11]}  Bxf6 {[%clk 0:01:23]} 23. Qe3 {[%clk 0:01:05]}  Bd4 {[%clk 0:01:08]} 24. Qf4 {[%clk 0:00:56]}  Ne5 {[%clk 0:00:58]} 25. b3 {[%clk 0:00:53]}  Qf6 {[%clk 0:00:41]} 26. Qxf6 {[%clk 0:00:52]}  exf6 {[%clk 0:00:42]} 27. Ne2 {[%clk 0:00:46]}  Nxc4 {[%clk 0:00:35]} 28. Nxd4 {[%clk 0:00:39]}  Nb2 {[%clk 0:00:31]} 29. Ba6 {[%clk 0:00:31]}  Rd8 {[%clk 0:00:31]} 30. Nf3 {[%clk 0:00:29]}  Nd1 {[%clk 0:00:25]} 31. Bd3 {[%clk 0:00:27]}  Nc3 {[%clk 0:00:24]} 32. Nd2 {[%clk 0:00:25]}  Kg7 {[%clk 0:00:24]} 33. Ra1 {[%clk 0:00:24]}  Bc6 {[%clk 0:00:22]} 34. Ra7 {[%clk 0:00:24]}  Bb5 {[%clk 0:00:21]} 35. Bxb5 {[%clk 0:00:20]}  Rxd2 {[%clk 0:00:20]} 36. Bc4 {[%clk 0:00:21]}  Nxe4 {[%clk 0:00:17]} 37. Rxf7+ {[%clk 0:00:20]}  Kh6 {[%clk 0:00:17]} 38. f3 {[%clk 0:00:21]}  Ng3 {[%clk 0:00:08]} 39. Rxf6 {[%clk 0:00:21]}  Rxc2 {[%clk 0:00:09]} 40. Rc6 {[%clk 0:00:19]}  Nf5 {[%clk 0:00:06]} 41. Rxc5 {[%clk 0:00:19]}  Rd2 {[%clk 0:00:04]} 42. Rc7 {[%clk 0:00:18]}  Ne3 {[%clk 0:00:05]} 43. Bg8 {[%clk 0:00:18]}  Rxg2+ {[%clk 0:00:05]} 44. Kh1 {[%clk 0:00:19]}  Rb2 {[%clk 0:00:05]} 45. Rxh7+ {[%clk 0:00:19]}  Kg5 {[%clk 0:00:06]} 46. Re7 {[%clk 0:00:20]}  Kf4 {[%clk 0:00:03]} 47. Re4+ {[%clk 0:00:20]}  Kxf3 {[%clk 0:00:03]} 48. Rxb4 {[%clk 0:00:20]}  Rb1+ {[%clk 0:00:03]} 49. Kh2 {[%clk 0:00:20]}  Nf1+ {[%clk 0:00:03]} 50. Kg1 {[%clk 0:00:20]}  Ng3+ {[%clk 0:00:04]} 51. Kh2 {[%clk 0:00:20]}  Rh1# {[%clk 0:00:05]} 0-1


[Site "https://www.chess.com"]

[Event "Titled Tuesday Blitz February 14 Early 2023"]
[White "Robledo, Cristian"]
[Black "Balint, Vilmos"]
[WhiteFideId "133450"]
[BlackFideId "718050"]
[WhiteElo "2270"]
[BlackElo "2169"]
[Result "1/2-1/2"]
[Round "02"]
[TimeControl "180+2"]
[Date "2023.02.15"]
[WhiteClock "0:00:38"]
[BlackClock "0:00:39"]

1. d4 {[%clk 0:02:59]}  Nf6 {[%clk 0:02:57]} 2. Bg5 {[%clk 0:02:56]}  d5 {[%clk 0:02:56]} 3. Bxf6 {[%clk 0:02:56]}  exf6 {[%clk 0:02:57]} 4. e3 {[%clk 0:02:57]}  Bd6 {[%clk 0:02:55]} 5. c4 {[%clk 0:02:57]}  dxc4 {[%clk 0:02:55]} 6. Bxc4 {[%clk 0:02:58]}  O-O {[%clk 0:02:55]} 7. Nc3 {[%clk 0:02:58]}  Bf5 {[%clk 0:02:54]} 8. Nf3 {[%clk 0:02:53]}  c6 {[%clk 0:02:54]} 9. O-O {[%clk 0:02:50]}  h6 {[%clk 0:02:54]} 10. Bd3 {[%clk 0:02:47]}  Bg4 {[%clk 0:02:44]} 11. Be2 {[%clk 0:02:45]}  Qb6 {[%clk 0:02:41]} 12. Qc2 {[%clk 0:02:38]}  Na6 {[%clk 0:02:37]} 13. a3 {[%clk 0:02:33]}  Nc7 {[%clk 0:02:28]} 14. b4 {[%clk 0:02:29]}  Ne6 {[%clk 0:02:26]} 15. Na4 {[%clk 0:02:26]}  Qc7 {[%clk 0:02:25]} 16. Nc5 {[%clk 0:02:27]}  Bxf3 {[%clk 0:02:24]} 17. Bxf3 {[%clk 0:02:24]}  Bxh2+ {[%clk 0:02:24]} 18. Kh1 {[%clk 0:02:24]}  Bd6 {[%clk 0:02:24]} 19. Rfc1 {[%clk 0:02:21]}  Bxc5 {[%clk 0:02:20]} 20. bxc5 {[%clk 0:02:18]}  Ng5 {[%clk 0:02:21]} 21. Be2 {[%clk 0:02:13]}  Rfe8 {[%clk 0:02:21]} 22. Rab1 {[%clk 0:02:03]}  Re7 {[%clk 0:02:20]} 23. Rb3 {[%clk 0:02:02]}  Ne4 {[%clk 0:02:19]} 24. Bf3 {[%clk 0:02:01]}  f5 {[%clk 0:02:17]} 25. Rcb1 {[%clk 0:02:01]}  Rb8 {[%clk 0:02:13]} 26. a4 {[%clk 0:01:59]}  Qa5 {[%clk 0:02:10]} 27. Rb4 {[%clk 0:01:57]}  g6 {[%clk 0:01:57]} 28. Bxe4 {[%clk 0:01:40]}  fxe4 {[%clk 0:01:56]} 29. Kg1 {[%clk 0:01:40]}  Qd8 {[%clk 0:01:49]} 30. R1b3 {[%clk 0:01:39]}  Qd5 {[%clk 0:01:48]} 31. Qb2 {[%clk 0:01:39]}  Qd7 {[%clk 0:01:40]} 32. a5 {[%clk 0:01:39]}  h5 {[%clk 0:01:24]} 33. a6 {[%clk 0:01:36]}  b6 {[%clk 0:01:18]} 34. cxb6 {[%clk 0:01:36]}  axb6 {[%clk 0:01:18]} 35. Rxb6 {[%clk 0:01:37]}  Rxb6 {[%clk 0:01:16]} 36. Rxb6 {[%clk 0:01:36]}  h4 {[%clk 0:01:17]} 37. Rb7 {[%clk 0:01:32]}  Qg4 {[%clk 0:01:07]} 38. Rxe7 {[%clk 0:01:19]}  h3 {[%clk 0:01:07]} 39. f3 {[%clk 0:01:16]}  exf3 {[%clk 0:01:07]} 40. a7 {[%clk 0:01:12]}  h2+ {[%clk 0:01:01]} 41. Kxh2 {[%clk 0:01:12]}  Qh4+ {[%clk 0:01:01]} 42. Kg1 {[%clk 0:01:07]}  Qe1+ {[%clk 0:01:01]} 43. Kh2 {[%clk 0:01:07]}  Qh4+ {[%clk 0:01:02]} 44. Kg1 {[%clk 0:00:40]}  Qe1+ {[%clk 0:01:03]} 45. Kh2 {[%clk 0:00:38]}  Qh4+ {[%clk 0:00:39]} 1/2-1/2


[Site "https://www.chess.com"]

[Event "Titled Tuesday Blitz February 14 Early 2023"]
[White "Rose, Felix"]
[Black "Aarav Dengla"]
[WhiteFideId "5105722"]
[BlackFideId "45059756"]
[WhiteElo "2091"]
[BlackElo "2343"]
[Result "0-1"]
[Round "02"]
[TimeControl "180+2"]
[Date "2023.02.15"]
[WhiteClock "0:01:18"]
[BlackClock "0:00:23"]

1. d4 {[%clk 0:03:00]}  d5 {[%clk 0:02:57]} 2. c4 {[%clk 0:03:00]}  e6 {[%clk 0:02:57]} 3. Nc3 {[%clk 0:03:01]}  a6 {[%clk 0:02:58]} 4. Nf3 {[%clk 0:02:58]}  dxc4 {[%clk 0:02:57]} 5. a4 {[%clk 0:02:57]}  Nc6 {[%clk 0:02:57]} 6. e4 {[%clk 0:02:54]}  Na5 {[%clk 0:02:56]} 7. Ne5 {[%clk 0:02:54]}  Nb3 {[%clk 0:02:47]} 8. Rb1 {[%clk 0:02:39]}  Qxd4 {[%clk 0:02:42]} 9. Qxd4 {[%clk 0:02:38]}  Nxd4 {[%clk 0:02:43]} 10. Bxc4 {[%clk 0:02:36]}  Nf6 {[%clk 0:02:40]} 11. O-O {[%clk 0:02:34]}  Bd7 {[%clk 0:02:37]} 12. Rd1 {[%clk 0:02:29]}  Bc5 {[%clk 0:02:35]} 13. Nxd7 {[%clk 0:02:23]}  Nxd7 {[%clk 0:02:27]} 14. b4 {[%clk 0:02:11]}  Ba7 {[%clk 0:02:20]} 15. Bb2 {[%clk 0:02:08]}  Ne5 {[%clk 0:02:06]} 16. Bf1 {[%clk 0:02:04]}  O-O-O {[%clk 0:01:45]} 17. b5 {[%clk 0:02:02]}  a5 {[%clk 0:01:40]} 18. h3 {[%clk 0:01:54]}  Nb3 {[%clk 0:01:27]} 19. Nd5 {[%clk 0:01:44]}  exd5 {[%clk 0:01:21]} 20. Bxe5 {[%clk 0:01:43]}  Nc5 {[%clk 0:01:21]} 21. Bxg7 {[%clk 0:01:37]}  Rhg8 {[%clk 0:01:13]} 22. Bf6 {[%clk 0:01:36]}  Rde8 {[%clk 0:00:41]} 23. exd5 {[%clk 0:01:34]}  Nxa4 {[%clk 0:00:38]} 24. Ra1 {[%clk 0:01:30]}  Nc5 {[%clk 0:00:26]} 25. Rxa5 {[%clk 0:01:29]}  Bb6 {[%clk 0:00:24]} 26. Ra8+ {[%clk 0:01:17]}  Kd7 {[%clk 0:00:23]} 27. Rxe8 {[%clk 0:01:17]}  Rxe8 {[%clk 0:00:24]} 28. Be2 {[%clk 0:01:18]}  Rxe2 {[%clk 0:00:23]} 0-1


[Site "https://www.chess.com"]

[Event "Titled Tuesday Blitz February 14 Early 2023"]
[White "Shashikant, Kutwal"]
[Black "Piriflillo"]
[WhiteFideId "5006520"]
[WhiteElo "2182"]
[BlackElo "2337"]
[Result "0-1"]
[Round "02"]
[TimeControl "180+2"]
[Date "2023.02.15"]
[WhiteClock "0:00:03"]
[BlackClock "0:00:04"]

1. e4 {[%clk 0:03:00]}  e5 {[%clk 0:02:57]} 2. Nf3 {[%clk 0:03:00]}  Nc6 {[%clk 0:02:57]} 3. Bc4 {[%clk 0:03:00]}  Bc5 {[%clk 0:02:55]} 4. O-O {[%clk 0:03:01]}  Nf6 {[%clk 0:02:55]} 5. d4 {[%clk 0:03:01]}  exd4 {[%clk 0:02:55]} 6. e5 {[%clk 0:03:02]}  d5 {[%clk 0:02:55]} 7. exf6 {[%clk 0:03:01]}  dxc4 {[%clk 0:02:56]} 8. Re1+ {[%clk 0:03:01]}  Be6 {[%clk 0:02:55]} 9. Ng5 {[%clk 0:03:01]}  Qd5 {[%clk 0:02:40]} 10. Nc3 {[%clk 0:03:01]}  Qf5 {[%clk 0:02:40]} 11. g4 {[%clk 0:03:00]}  Qg6 {[%clk 0:02:36]} 12. Nce4 {[%clk 0:02:59]}  Bb6 {[%clk 0:01:48]} 13. f4 {[%clk 0:02:58]}  O-O-O {[%clk 0:01:39]} 14. f5 {[%clk 0:02:58]}  Bxf5 {[%clk 0:01:39]} 15. gxf5 {[%clk 0:02:59]}  Qxf5 {[%clk 0:01:40]} 16. Rf1 {[%clk 0:02:01]}  Qd5 {[%clk 0:01:12]} 17. fxg7 {[%clk 0:01:16]}  Rhg8 {[%clk 0:01:08]} 18. Qg4+ {[%clk 0:01:16]}  Kb8 {[%clk 0:01:05]} 19. Rf5 {[%clk 0:01:16]}  d3+ {[%clk 0:01:01]} 20. Kh1 {[%clk 0:01:00]}  Qd4 {[%clk 0:00:56]} 21. cxd3 {[%clk 0:00:42]}  cxd3 {[%clk 0:00:54]} 22. Bd2 {[%clk 0:00:42]}  Qxb2 {[%clk 0:00:42]} 23. Bc3 {[%clk 0:00:24]}  Qe2 {[%clk 0:00:42]} 24. Qxe2 {[%clk 0:00:06]}  dxe2 {[%clk 0:00:43]} 25. Re1 {[%clk 0:00:03]}  Rd1 {[%clk 0:00:21]} 26. Rxf7 {[%clk 0:00:03]}  Bc5 {[%clk 0:00:09]} 27. Nxc5 {[%clk 0:00:03]}  b6 {[%clk 0:00:03]} 28. Rf8+ {[%clk 0:00:03]}  Rd8 {[%clk 0:00:04]} 0-1


[Site "https://www.chess.com"]

[Event "Titled Tuesday Blitz February 14 Early 2023"]
[White "Baches Garcia, Guillermo"]
[Black "Vaglio Munoz, Jaime"]
[WhiteFideId "2209764"]
[BlackFideId "6500145"]
[WhiteElo "2327"]
[BlackElo "2174"]
[Result "0-1"]
[Round "02"]
[TimeControl "180+2"]
[Date "2023.02.15"]
[WhiteClock "0:00:08"]
[BlackClock "0:01:36"]

1. e4 {[%clk 0:03:00]}  e6 {[%clk 0:02:58]} 2. d4 {[%clk 0:03:00]}  d5 {[%clk 0:02:58]} 3. exd5 {[%clk 0:03:01]}  exd5 {[%clk 0:02:58]} 4. Nf3 {[%clk 0:03:02]}  Bg4 {[%clk 0:02:57]} 5. h3 {[%clk 0:03:01]}  Bxf3 {[%clk 0:02:56]} 6. Qxf3 {[%clk 0:03:01]}  c6 {[%clk 0:02:56]} 7. Bd3 {[%clk 0:02:59]}  Qf6 {[%clk 0:02:55]} 8. Qe2+ {[%clk 0:02:54]}  Qe6 {[%clk 0:02:52]} 9. Qxe6+ {[%clk 0:02:44]}  fxe6 {[%clk 0:02:53]} 10. O-O {[%clk 0:02:43]}  Kd7 {[%clk 0:02:51]} 11. Nd2 {[%clk 0:02:41]}  Bd6 {[%clk 0:02:45]} 12. Nf3 {[%clk 0:02:36]}  Nf6 {[%clk 0:02:42]} 13. Re1 {[%clk 0:02:36]}  Re8 {[%clk 0:02:40]} 14. Ne5+ {[%clk 0:02:34]}  Bxe5 {[%clk 0:02:39]} 15. dxe5 {[%clk 0:02:31]}  Ng8 {[%clk 0:02:33]} 16. Bxh7 {[%clk 0:02:29]}  Ne7 {[%clk 0:02:33]} 17. Re3 {[%clk 0:02:13]}  g6 {[%clk 0:02:25]} 18. Rg3 {[%clk 0:02:06]}  c5 {[%clk 0:02:20]} 19. Bxg6 {[%clk 0:01:54]}  Rg8 {[%clk 0:02:20]} 20. Bd3 {[%clk 0:01:44]}  Rxg3 {[%clk 0:02:18]} 21. fxg3 {[%clk 0:01:45]}  Nbc6 {[%clk 0:02:18]} 22. Bb5 {[%clk 0:01:40]}  a6 {[%clk 0:02:14]} 23. Bxc6+ {[%clk 0:01:39]}  Nxc6 {[%clk 0:02:14]} 24. Bf4 {[%clk 0:01:39]}  Nb4 {[%clk 0:02:11]} 25. c3 {[%clk 0:01:35]}  Nd3 {[%clk 0:02:11]} 26. b3 {[%clk 0:01:32]}  b5 {[%clk 0:02:10]} 27. h4 {[%clk 0:01:11]}  Rh8 {[%clk 0:02:09]} 28. Kh2 {[%clk 0:01:06]}  b4 {[%clk 0:02:02]} 29. cxb4 {[%clk 0:01:02]}  Nxb4 {[%clk 0:02:01]} 30. Kh3 {[%clk 0:01:00]}  Nd3 {[%clk 0:02:01]} 31. Kg4 {[%clk 0:00:56]}  Rg8+ {[%clk 0:01:50]} 32. Kf3 {[%clk 0:00:51]}  Rf8 {[%clk 0:01:49]} 33. Ke3 {[%clk 0:00:48]}  Nb4 {[%clk 0:01:48]} 34. h5 {[%clk 0:00:48]}  Nc2+ {[%clk 0:01:48]} 35. Kd2 {[%clk 0:00:42]}  Nxa1 {[%clk 0:01:49]} 36. h6 {[%clk 0:00:28]}  Ke7 {[%clk 0:01:47]} 37. Kc3 {[%clk 0:00:12]}  Kf7 {[%clk 0:01:42]} 38. Kb2 {[%clk 0:00:11]}  Nxb3 {[%clk 0:01:41]} 39. axb3 {[%clk 0:00:12]}  Rb8 {[%clk 0:01:38]} 40. Kc3 {[%clk 0:00:11]}  Kg6 {[%clk 0:01:38]} 41. g4 {[%clk 0:00:10]}  a5 {[%clk 0:01:37]} 42. g3 {[%clk 0:00:10]}  a4 {[%clk 0:01:37]} 43. bxa4 {[%clk 0:00:10]}  c4 {[%clk 0:01:36]} 44. g5 {[%clk 0:00:10]}  Rb3+ {[%clk 0:01:36]} 45. Kc2 {[%clk 0:00:08]}  Ra3 {[%clk 0:01:36]} 0-1


[Site "https://www.chess.com"]

[Event "Titled Tuesday Blitz February 14 Early 2023"]
[White "Makhmudov, Shukhrat"]
[Black "Nguyen Hong Nhung"]
[WhiteFideId "14200775"]
[BlackFideId "12412201"]
[WhiteElo "2115"]
[BlackElo "2003"]
[Result "0-1"]
[Round "02"]
[TimeControl "180+2"]
[Date "2023.02.15"]
[WhiteClock "0:00:38"]
[BlackClock "0:00:49"]

1. e4 {[%clk 0:02:53]}  c5 {[%clk 0:02:59]} 2. Nf3 {[%clk 0:02:51]}  e6 {[%clk 0:02:59]} 3. b4 {[%clk 0:02:41]}  cxb4 {[%clk 0:02:59]} 4. d4 {[%clk 0:02:35]}  Nf6 {[%clk 0:02:56]} 5. Bd3 {[%clk 0:02:31]}  Be7 {[%clk 0:02:38]} 6. h4 {[%clk 0:02:20]}  Nc6 {[%clk 0:02:34]} 7. Nbd2 {[%clk 0:02:12]}  b6 {[%clk 0:02:27]} 8. Bb2 {[%clk 0:02:03]}  Bb7 {[%clk 0:01:56]} 9. Rh3 {[%clk 0:01:52]}  d5 {[%clk 0:01:44]} 10. e5 {[%clk 0:01:45]}  Nh5 {[%clk 0:01:43]} 11. g3 {[%clk 0:01:29]}  g6 {[%clk 0:01:42]} 12. Nb3 {[%clk 0:01:21]}  a5 {[%clk 0:01:41]} 13. a4 {[%clk 0:01:15]}  bxa3 {[%clk 0:01:39]} 14. Bxa3 {[%clk 0:01:15]}  Bxa3 {[%clk 0:01:37]} 15. Rxa3 {[%clk 0:01:15]}  Qe7 {[%clk 0:01:38]} 16. Ra1 {[%clk 0:00:56]}  Ba6 {[%clk 0:01:34]} 17. Bxa6 {[%clk 0:00:53]}  Rxa6 {[%clk 0:01:34]} 18. c3 {[%clk 0:00:53]}  a4 {[%clk 0:01:25]} 19. Qd3 {[%clk 0:00:46]}  Qb7 {[%clk 0:01:16]} 20. Qb5 {[%clk 0:00:39]}  a3 {[%clk 0:00:59]} 21. Nc5 {[%clk 0:00:38]}  Ra5 {[%clk 0:00:49]} 0-1


[Site "https://www.chess.com"]

[Event "Titled Tuesday Blitz February 14 Early 2023"]
[White "Baghdasaryan, Vahe"]
[Black "Kornyukov, Alexey"]
[WhiteFideId "13303139"]
[BlackFideId "4150457"]
[WhiteElo "2257"]
[BlackElo "2452"]
[Result "1-0"]
[Round "02"]
[TimeControl "180+2"]
[Date "2023.02.15"]
[WhiteClock "0:00:40"]
[BlackClock "0:00:22"]

1. e4 {[%clk 0:02:55]}  c5 {[%clk 0:02:57]} 2. Nf3 {[%clk 0:02:54]}  Nc6 {[%clk 0:02:57]} 3. d4 {[%clk 0:02:55]}  cxd4 {[%clk 0:02:57]} 4. Nxd4 {[%clk 0:02:56]}  e5 {[%clk 0:02:57]} 5. Nb5 {[%clk 0:02:55]}  a6 {[%clk 0:02:57]} 6. Nd6+ {[%clk 0:02:55]}  Bxd6 {[%clk 0:02:57]} 7. Qxd6 {[%clk 0:02:55]}  Qe7 {[%clk 0:02:57]} 8. Qd1 {[%clk 0:02:49]}  Nf6 {[%clk 0:02:56]} 9. Nc3 {[%clk 0:02:49]}  O-O {[%clk 0:02:56]} 10. Bg5 {[%clk 0:02:38]}  Qe6 {[%clk 0:02:53]} 11. Bxf6 {[%clk 0:02:36]}  Qxf6 {[%clk 0:02:51]} 12. Bc4 {[%clk 0:02:36]}  Qg6 {[%clk 0:02:48]} 13. O-O {[%clk 0:02:35]}  d6 {[%clk 0:02:41]} 14. f3 {[%clk 0:02:27]}  Nd4 {[%clk 0:02:33]} 15. Nd5 {[%clk 0:01:44]}  Kh8 {[%clk 0:01:59]} 16. c3 {[%clk 0:01:43]}  Ne6 {[%clk 0:01:56]} 17. Nb6 {[%clk 0:01:15]}  Nf4 {[%clk 0:01:51]} 18. g3 {[%clk 0:01:12]}  Rb8 {[%clk 0:01:50]} 19. Kh1 {[%clk 0:01:11]}  Bh3 {[%clk 0:01:45]} 20. Rf2 {[%clk 0:01:07]}  Nh5 {[%clk 0:01:42]} 21. g4 {[%clk 0:00:59]}  Nf4 {[%clk 0:01:39]} 22. Nd7 {[%clk 0:00:59]}  Qh6 {[%clk 0:01:24]} 23. Nxf8 {[%clk 0:00:56]}  Rxf8 {[%clk 0:01:22]} 24. Bd5 {[%clk 0:00:56]}  Qh4 {[%clk 0:01:17]} 25. Qg1 {[%clk 0:00:55]}  Rc8 {[%clk 0:01:06]} 26. Bxb7 {[%clk 0:00:52]}  Rb8 {[%clk 0:01:04]} 27. Bd5 {[%clk 0:00:52]}  Nxd5 {[%clk 0:00:59]} 28. exd5 {[%clk 0:00:53]}  e4 {[%clk 0:00:58]} 29. Qg3 {[%clk 0:00:49]}  Qxg3 {[%clk 0:00:50]} 30. hxg3 {[%clk 0:00:50]}  exf3 {[%clk 0:00:48]} 31. Rxf3 {[%clk 0:00:50]}  Bxg4 {[%clk 0:00:48]} 32. Rxf7 {[%clk 0:00:50]}  Kg8 {[%clk 0:00:46]} 33. Rf4 {[%clk 0:00:47]}  Bh5 {[%clk 0:00:44]} 34. b4 {[%clk 0:00:47]}  Rc8 {[%clk 0:00:40]} 35. c4 {[%clk 0:00:46]}  Rb8 {[%clk 0:00:40]} 36. a3 {[%clk 0:00:45]}  Re8 {[%clk 0:00:39]} 37. c5 {[%clk 0:00:44]}  dxc5 {[%clk 0:00:38]} 38. bxc5 {[%clk 0:00:45]}  Re5 {[%clk 0:00:37]} 39. Raf1 {[%clk 0:00:40]}  h6 {[%clk 0:00:35]} 40. Rd4 {[%clk 0:00:40]}  Re2 {[%clk 0:00:33]} 41. d6 {[%clk 0:00:39]}  Re8 {[%clk 0:00:27]} 42. d7 {[%clk 0:00:39]}  Rd8 {[%clk 0:00:27]} 43. c6 {[%clk 0:00:40]}  Rf8 {[%clk 0:00:22]} 1-0


[Site "https://www.chess.com"]